Workbook

Sheet Input-Output
A1: Triangular-distribution fitting spreadsheet. Enter you data in column B and click the "Solve" button to fit the data using least-squares optimization
A2: Input your data into column B (in any order) and Click the "Solve Button"
A3: NOTE: The solver on this spreadsheet is constrained so that the Min & Max are within on the range 1<= X <= 20 | G3: NOTE: The solver must be installed
A4: The solver minimizes the sum of the squared value of deviations from the input data | G4: This can be done using the Add-Ins Menu
A5: The solve-button code uses up to 200 data values
B6: INPUT
A7: Index | B7: Your Data
A8: 1 | B8: 1.700457598 | E8: Input Data | F8: OUTPUT: | G8: OUTPUT (Rounded):
A9: 2 | B9: 1.863415112 | D9: Sum: | E9: =SUM(B8:B207) -> 50.42561791 | G9: Min | H9: MPV | I9: Max
A10: 3 | B10: 1.871321727 | D10: a) Minimum | E10: =MIN(B8:B207) -> 1.700457598 | F10: 1.829890652 | G10: =ROUND(F10,3) -> 1.83 | H10: =ROUND(F11,3) -> 1.83 | I10: =ROUND(F12,3) -> 3.553
A11: 4 | B11: 1.970076877 | D11: b) Most Probable Value (MPV) | E11: =(3*AVERAGE(B8:B207))-(MIN(B8:B207)+MAX(B8:B207)) -> 2.380333844 | F11: 1.829890652
A12: 5 | B12: 2.005165846 | D12: d) Maximum | E12: =MAX(B8:B207) -> 3.122868259 | F12: 3.553207403
A13: 6 | B13: 2.111444295
A14: 7 | B14: 2.211734849 | E14: Data | F14: Fit Distribution
A15: 8 | B15: 2.246237447 | D15: Average | E15: =ROUND(AVERAGE(B8:B207),Calculations!F11) -> 2.4 | F15: =ROUND(AVERAGE(Calculations!L3:L202),Calculations!F11) -> 2.4
A16: 9 | B16: 2.298336807 | D16: Standard Deviation | E16: =ROUND(STDEV(B8:B207),Calculations!F11) -> 0.42 | F16: =ROUND(STDEV(Calculations!L3:L202),Calculations!F11) -> 0.41
A17: 10 | B17: 2.314297783 | D17: Percentile
A18: 11 | B18: 2.317847815 | D18: 1st | E18: =ROUND(PERCENTILE(B8:B207,0.01),Calculations!F11) -> 1.73 | F18: =ROUND(PERCENTILE(Calculations!L3:L202,0.01),Calculations!F11) -> 1.86
A19: 12 | B19: 2.319937789 | D19: 5th | E19: =ROUND(PERCENTILE(B8:B207,0.05),Calculations!F11) -> 1.86 | F19: =ROUND(PERCENTILE(Calculations!L3:L202,0.05),Calculations!F11) -> 1.9
A20: 13 | B20: 2.468658999 | D20: 10th | E20: =ROUND(PERCENTILE(B8:B207,0.1),Calculations!F11) -> 1.87 | F20: =ROUND(PERCENTILE(Calculations!L3:L202,0.1),Calculations!F11) -> 1.94
A21: 14 | B21: 2.506530732 | D21: 25th | E21: =ROUND(PERCENTILE(B8:B207,0.25),Calculations!F11) -> 2.11 | F21: =ROUND(PERCENTILE(Calculations!L3:L202,0.25),Calculations!F11) -> 2.07
A22: 15 | B22: 2.523888919 | D22: 50th | E22: =ROUND(PERCENTILE(B8:B207,0.5),Calculations!F11) -> 2.32 | F22: =ROUND(PERCENTILE(Calculations!L3:L202,0.5),Calculations!F11) -> 2.33
A23: 16 | B23: 2.837483537 | D23: 75th | E23: =ROUND(PERCENTILE(B8:B207,0.75),Calculations!F11) -> 2.84 | F23: =ROUND(PERCENTILE(Calculations!L3:L202,0.75),Calculations!F11) -> 2.67
A24: 17 | B24: 2.895823665 | D24: 90th | E24: =ROUND(PERCENTILE(B8:B207,0.9),Calculations!F11) -> 2.93 | F24: =ROUND(PERCENTILE(Calculations!L3:L202,0.9),Calculations!F11) -> 2.95
A25: 18 | B25: 2.919299207 | D25: 95th | E25: =ROUND(PERCENTILE(B8:B207,0.95),Calculations!F11) -> 2.99 | F25: =ROUND(PERCENTILE(Calculations!L3:L202,0.95),Calculations!F11) -> 3.08
A26: 19 | B26: 2.934022536 | D26: 99th | E26: =ROUND(PERCENTILE(B8:B207,0.99),Calculations!F11) -> 3.1 | F26: =ROUND(PERCENTILE(Calculations!L3:L202,0.99),Calculations!F11) -> 3.23
A27: 20 | B27: 2.986768109
A28: 21 | B28: 3.122868259
A29: 22
A30: 23
A31: 24
A32: 25
A33: 26
A34: 27
A35: 28
A36: 29
A37: 30
A38: 31
A39: 32
A40: 33
A41: 34
A42: 35
A43: 36
A44: 37
A45: 38
A46: 39
A47: 40
A48: 41
A49: 42
A50: 43
A51: 44
A52: 45
A53: 46
A54: 47
A55: 48
A56: 49
A57: 50
A58: 51
A59: 52
A60: 53
A61: 54
A62: 55
A63: 56
A64: 57
A65: 58
A66: 59
A67: 60
A68: 61
A69: 62
A70: 63
A71: 64
A72: 65
A73: 66
A74: 67
A75: 68
A76: 69
A77: 70
A78: 71
A79: 72
A80: 73
A81: 74
A82: 75
A83: 76
A84: 77
A85: 78
A86: 79
A87: 80
A88: 81
A89: 82
A90: 83
A91: 84
A92: 85
A93: 86
A94: 87
A95: 88
A96: 89
A97: 90
A98: 91
A99: 92
A100: 93
A101: 94
A102: 95
A103: 96
A104: 97
A105: 98
A106: 99
A107: 100
A108: 101
A109: 102
A110: 103
A111: 104
A112: 105
A113: 106
A114: 107
A115: 108
A116: 109
A117: 110
A118: 111
A119: 112
A120: 113
A121: 114
A122: 115
A123: 116
A124: 117
A125: 118
A126: 119
A127: 120
A128: 121
A129: 122
A130: 123
A131: 124
A132: 125
A133: 126
A134: 127
A135: 128
A136: 129
A137: 130
A138: 131
A139: 132
A140: 133
A141: 134
A142: 135
A143: 136
A144: 137
A145: 138
A146: 139
A147: 140
A148: 141
A149: 142
A150: 143
A151: 144
A152: 145
A153: 146
A154: 147
A155: 148
A156: 149
A157: 150
A158: 151
A159: 152
A160: 153
A161: 154
A162: 155
A163: 156
A164: 157
A165: 158
A166: 159
A167: 160
A168: 161
A169: 162
A170: 163
A171: 164
A172: 165
A173: 166
A174: 167
A175: 168
A176: 169
A177: 170
A178: 171
A179: 172
A180: 173
A181: 174
A182: 175
A183: 176
A184: 177
A185: 178
A186: 179
A187: 180
A188: 181
A189: 182
A190: 183
A191: 184
A192: 185
A193: 186
A194: 187
A195: 188
A196: 189
A197: 190
A198: 191
A199: 192
A200: 193
... 7 more rows

Sheet Calculations
B1: Count | C1: =COUNT(B3:B202) -> 21 | E1: Data Min: | F1: =MIN('Input-Output'!B8:B207) -> 1.700457598 | M1: Sum | N1: =AVERAGE(O2:O202) -> 0.06787209021 | O1: =ABS(AVERAGE(O3:O202)) -> 0.06787209021 | Q1: =SUM(Q3:Q23) -> 0.1464915692 | S1: Graph Line: | T1: Percentile | U1: P | V1: Trapeziodal Value | W1: A | X1: B | Y1: C
A2: Index | B2: Your Data | C2: Percentile | E2: Calculate | I2: A | J2: B | K2: C | L2: Value | N2: Residual | O2: Abs Residual | Q2: Squared Residual | T2: 0.1 | U2: =T2/100 -> 0.001 | V2: =IF((F$8*(F$4-F$3))>=U2,W2,IF((1-((F$8)*(F$6-F$5)))>=U2,X2,Y2)) -> 1.830752526 | W2: =IF(ISNUMBER(U2)=TRUE,(F$3+SQRT((2*(F$4-F$3))/F$7)*SQRT(U2)),"") -> 1.829890652 | X2: =IF(ISNUMBER(U2)=TRUE,(((F$3+F$4)/2)+(U2/F$7)),"") -> 1.83075231 | Y2: =IF(ISNUMBER(U2)=TRUE,(F$6-SQRT((2*(F$6-F$5))/F$7)*SQRT(1-U2)),"") -> 1.830752526
A3: 1 | B3: 1.700457598 | C3: =IF(ISBLANK(B3)=FALSE,(((RANK(B3,B$3:B$207,1)+((COUNT(B$3:B$207)+1-RANK(B3,B$3:B$207,1)-RANK(B3,B$3:B$207,0))/2))-0.4)/(C$1+0.2)),"") -> 0.02830188679 | D3: =IF(ISNUMBER(C3)=TRUE,C3*100,"") -> 2.830188679 | E3: a) Minimum | F3: 1.829890652 | G3: =F3 -> 1.829890652 | I3: =IF(ISNUMBER(C3)=TRUE,(F$3+SQRT((2*(F$4-F$3))/F$7)*SQRT(C3)),"") -> 1.829890652 | J3: =IF(ISNUMBER(C3)=TRUE,(((F$3+F$4)/2)+(C3/F$7)),"") -> 1.854277209 | K3: =IF(ISNUMBER(C3)=TRUE,(F$6-SQRT((2*(F$6-F$5))/F$7)*SQRT(1-C3)),"") -> 1.854452242 | L3: =IF((F$8*(F$4-F$3))>=C3,I3,IF((1-((F$8)*(F$6-F$5)))>=C3,J3,K3)) -> 1.854452242 | N3: =IF(ISNUMBER(B3)=TRUE,L3-B3,"") -> 0.1539946436 | O3: =IF(ISNUMBER(B3)=TRUE,ABS(N3),"") -> 0.1539946436 | Q3: =IF(ISNUMBER(N3)=TRUE,N3^2,"") -> 0.02371435024 | T3: 0.5 | U3: 0.005 | V3: =IF((F$8*(F$4-F$3))>=U3,W3,IF((1-((F$8)*(F$6-F$5)))>=U3,X3,Y3)) -> 1.834204342 | W3: =IF(ISNUMBER(U3)=TRUE,(F$3+SQRT((2*(F$4-F$3))/F$7)*SQRT(U3)),"") -> 1.829890652 | X3: =IF(ISNUMBER(U3)=TRUE,(((F$3+F$4)/2)+(U3/F$7)),"") -> 1.834198944 | Y3: =IF(ISNUMBER(U3)=TRUE,(F$6-SQRT((2*(F$6-F$5))/F$7)*SQRT(1-U3)),"") -> 1.834204342
A4: 2 | B4: 1.863415112 | C4: =IF(ISBLANK(B4)=FALSE,(((RANK(B4,B$3:B$207,1)+((COUNT(B$3:B$207)+1-RANK(B4,B$3:B$207,1)-RANK(B4,B$3:B$207,0))/2))-0.4)/(C$1+0.2)),"") -> 0.07547169811 | D4: 7.547169811 | E4: b) Lower Bound of the Most Probable Value | F4: 1.829890652 | G4: =F4 -> 1.829890652 | I4: 1.829890652 | J4: 1.894921472 | K4: 1.896197077 | L4: 1.896197077 | N4: 0.03278196475 | O4: 0.03278196475 | Q4: =IF(ISNUMBER(N4)=TRUE,N4^2,"") -> 0.001074657213 | T4: 1 | U4: 0.01 | V4: 1.838528885 | W4: =IF(ISNUMBER(U4)=TRUE,(F$3+SQRT((2*(F$4-F$3))/F$7)*SQRT(U4)),"") -> 1.829890652 | X4: =IF(ISNUMBER(U4)=TRUE,(((F$3+F$4)/2)+(U4/F$7)),"") -> 1.838507235 | Y4: =IF(ISNUMBER(U4)=TRUE,(F$6-SQRT((2*(F$6-F$5))/F$7)*SQRT(1-U4)),"") -> 1.838528885
A5: 3 | B5: 1.871321727 | C5: 0.1226415094 | D5: 12.26415094 | E5: c) Upper Bound of the Most Probable Value | F5: 1.829890652 | G5: =F6 -> 3.553207403 | I5: 1.829890652 | J5: 1.935565735 | K5: 1.939021125 | L5: 1.939021125 | N5: 0.06769939726 | O5: 0.06769939726 | Q5: 0.004583208389 | T5: 2 | U5: 0.02 | V5: 1.847210858 | W5: 1.829890652 | X5: 1.847123819 | Y5: 1.847210858
A6: 4 | B6: 1.970076877 | C6: 0.1698113208 | D6: 16.98113208 | E6: d) Maximum | F6: 3.553207403 | I6: 1.829890652 | J6: 1.976209999 | K6: 1.983012682 | L6: 1.983012682 | N6: 0.0129358043 | O6: 0.0129358043 | Q6: 0.0001673350329 | T6: 3 | U6: 0.03 | V6: 1.85593724 | W6: 1.829890652 | X6: 1.855740403 | Y6: 1.85593724
A7: 5 | B7: 2.005165846 | C7: 0.2169811321 | D7: 21.69811321 | E7: dh | F7: =2/((F6-F3)+(F5-F4)) -> 1.160552753 | I7: 1.829890652 | J7: 2.016854262 | K7: 2.028272787 | L7: 2.028272787 | N7: 0.02310694029 | O7: 0.02310694029 | Q7: 0.0005339306896 | T7: 4 | U7: 0.04 | V7: 1.864708721 | W7: 1.829890652 | X7: 1.864356987 | Y7: 1.864708721
A8: 6 | B8: 2.111444295 | C8: 0.2641509434 | D8: 26.41509434 | E8: dh/2 | F8: =F7/2 -> 0.5802763763 | I8: 1.829890652 | J8: 2.057498525 | K8: 2.074917951 | L8: 2.074917951 | N8: -0.036526344 | O8: 0.036526344 | Q8: 0.001334173806 | T8: 5 | U8: 0.05 | V8: 1.873526006 | W8: 1.829890652 | X8: 1.87297357 | Y8: 1.873526006
A9: 7 | B9: 2.211734849 | C9: 0.3113207547 | D9: 31.13207547 | I9: 1.829890652 | J9: 2.098142788 | K9: 2.123083693 | L9: 2.123083693 | N9: -0.08865115655 | O9: 0.08865115655 | Q9: 0.007859027557 | T9: 6 | U9: 0.06 | V9: 1.882389822 | W9: 1.829890652 | X9: 1.881590154 | Y9: 1.882389822
A10: 8 | B10: 2.246237447 | C10: 0.358490566 | D10: 35.8490566 | I10: 1.829890652 | J10: 2.138787051 | K10: 2.172929189 | L10: 2.172929189 | N10: -0.0733082582 | O10: 0.0733082582 | Q10: 0.005374100721 | T10: 7 | U10: 0.07 | V10: 1.891300913 | W10: 1.829890652 | X10: 1.890206738 | Y10: 1.891300913
A11: 9 | B11: 2.298336807 | C11: 0.4056603774 | D11: 40.56603774 | E11: Calculated Rounding Factor | F11: =IF(F6=0,3,IF(F3=0,(IF((INT((LOG(ABS(F6/10))*-1))+3)>0,(INT((LOG(ABS(F6/10))*-1))+3),0)),IF((INT((LOG(ABS(F3))*-1))+3)>0,(INT((LOG(ABS(F3))*-1))+3),0))) -> 2 | I11: 1.829890652 | J11: 2.179431314 | K11: 2.224643491 | L11: 2.224643491 | N11: -0.07369331614 | O11: 0.07369331614 | Q11: 0.005430704844 | T11: 8 | U11: 0.08 | V11: 1.900260043 | W11: 1.829890652 | X11: 1.898823322 | Y11: 1.900260043
A12: 10 | B12: 2.314297783 | C12: 0.4528301887 | D12: 45.28301887 | I12: =IF(ISNUMBER(C12)=TRUE,(F$3+SQRT((2*(F$4-F$3))/F$7)*SQRT(C12)),"") -> 1.829890652 | J12: =IF(ISNUMBER(C12)=TRUE,(((F$3+F$4)/2)+(C12/F$7)),"") -> 2.220075577 | K12: =IF(ISNUMBER(C12)=TRUE,(F$6-SQRT((2*(F$6-F$5))/F$7)*SQRT(1-C12)),"") -> 2.278454019 | L12: =IF((F$8*(F$4-F$3))>=C12,I12,IF((1-((F$8)*(F$6-F$5)))>=C12,J12,K12)) -> 2.278454019 | N12: =IF(ISNUMBER(B12)=TRUE,L12-B12,"") -> -0.03584376402 | O12: =IF(ISNUMBER(B12)=TRUE,ABS(N12),"") -> 0.03584376402 | Q12: 0.001284775419 | T12: 9 | U12: 0.09 | V12: 1.909267997 | W12: 1.829890652 | X12: 1.907439905 | Y12: 1.909267997
A13: 11 | B13: 2.317847815 | C13: 0.5 | D13: 50 | E13: 1st | F13: ='Input-Output'!E18 -> 1.73 | G13: ='Input-Output'!F18 -> 1.86 | H13: =ABS(F13-G13) -> 0.13 | I13: 1.829890652 | J13: 2.26071984 | K13: 2.334638442 | L13: 2.334638442 | N13: 0.01679062678 | O13: 0.01679062678 | Q13: 0.0002819251476 | T13: 10 | U13: 0.1 | V13: 1.918325584 | W13: 1.829890652 | X13: 1.916056489 | Y13: 1.918325584
A14: 12 | B14: 2.319937789 | C14: 0.5471698113 | D14: 54.71698113 | E14: 5th | F14: ='Input-Output'!E19 -> 1.86 | G14: ='Input-Output'!F19 -> 1.9 | H14: =ABS(F14-G14) -> 0.04 | I14: 1.829890652 | J14: 2.301364103 | K14: 2.393541747 | L14: 2.393541747 | N14: 0.07360395825 | O14: 0.07360395825 | Q14: 0.00541754267 | T14: 11 | U14: 0.11 | V14: 1.927433631 | W14: 1.829890652 | X14: 1.924673073 | Y14: 1.927433631
A15: 13 | B15: 2.468658999 | C15: 0.5943396226 | D15: 59.43396226 | E15: 10th | F15: ='Input-Output'!E20 -> 1.87 | G15: ='Input-Output'!F20 -> 1.94 | H15: 0.07 | I15: 1.829890652 | J15: 2.342008366 | K15: 2.455601574 | L15: 2.455601574 | N15: -0.01305742492 | O15: 0.01305742492 | Q15: 0.0001704963456 | T15: 12 | U15: 0.12 | V15: 1.936592993 | W15: 1.829890652 | X15: 1.933289657 | Y15: 1.936592993
A16: 14 | B16: 2.506530732 | C16: 0.641509434 | D16: 64.1509434 | E16: 25th | F16: ='Input-Output'!E21 -> 2.11 | G16: ='Input-Output'!F21 -> 2.07 | H16: 0.04 | I16: 1.829890652 | J16: 2.382652629 | K16: 2.521387323 | L16: 2.521387323 | N16: 0.01485659122 | O16: 0.01485659122 | Q16: 0.0002207183026 | T16: 13 | U16: 0.13 | V16: 1.945804546 | W16: 1.829890652 | X16: 1.941906241 | Y16: 1.945804546
A17: 15 | B17: 2.523888919 | C17: 0.6886792453 | D17: 68.86792453 | E17: 50th | F17: ='Input-Output'!E22 -> 2.32 | G17: ='Input-Output'!F22 -> 2.33 | H17: 0.01 | I17: 1.829890652 | J17: 2.423296892 | K17: 2.591663437 | L17: 2.591663437 | N17: 0.06777451822 | O17: 0.06777451822 | Q17: 0.004593385319 | T17: 14 | U17: 0.14 | V17: 1.955069193 | W17: 1.829890652 | X17: 1.950522824 | Y17: 1.955069193
A18: 16 | B18: 2.837483537 | C18: 0.7358490566 | D18: 73.58490566 | E18: 75th | F18: ='Input-Output'!E23 -> 2.84 | G18: ='Input-Output'!F23 -> 2.67 | H18: 0.17 | I18: 1.829890652 | J18: 2.463941155 | K18: 2.667498128 | L18: 2.667498128 | N18: -0.1699854086 | O18: 0.1699854086 | Q18: 0.02889503912 | T18: 15 | U18: 0.15 | V18: 1.964387863 | W18: 1.829890652 | X18: 1.959139408 | Y18: 1.964387863
A19: 17 | B19: 2.895823665 | C19: 0.7830188679 | D19: 78.30188679 | E19: 90th | F19: ='Input-Output'!E24 -> 2.93 | G19: ='Input-Output'!F24 -> 2.95 | H19: 0.02 | I19: 1.829890652 | J19: 2.504585418 | K19: 2.750465202 | L19: 2.750465202 | N19: -0.145358463 | O19: 0.145358463 | Q19: 0.02112908278 | T19: 16 | U19: 0.16 | V19: 1.973761511 | W19: 1.829890652 | X19: 1.967755992 | Y19: 1.973761511
A20: 18 | B20: 2.919299207 | C20: 0.8301886792 | D20: 83.01886792 | E20: 95th | F20: ='Input-Output'!E25 -> 2.99 | G20: ='Input-Output'!F25 -> 3.08 | H20: 0.09 | I20: 1.829890652 | J20: 2.545229681 | K20: 2.843060121 | L20: 2.843060121 | N20: -0.07623908629 | O20: 0.07623908629 | Q20: 0.005812398279 | T20: 17 | U20: 0.17 | V20: 1.983191123 | W20: 1.829890652 | X20: 1.976372576 | Y20: 1.983191123
A21: 19 | B21: 2.934022536 | C21: 0.8773584906 | D21: 87.73584906 | E21: 99th | F21: ='Input-Output'!E26 -> 3.1 | G21: ='Input-Output'!F26 -> 3.23 | H21: 0.13 | I21: 1.829890652 | J21: 2.585873944 | K21: 2.949698261 | L21: 2.949698261 | N21: 0.01567572527 | O21: 0.01567572527 | Q21: 0.0002457283627 | T21: 18 | U21: 0.18 | V21: 1.992677713 | W21: 1.829890652 | X21: 1.984989159 | Y21: 1.992677713
A22: 20 | B22: 2.986768109 | C22: 0.9245283019 | D22: 92.45283019 | I22: 1.829890652 | J22: 2.626518207 | K22: 3.079775882 | L22: 3.079775882 | N22: 0.09300777236 | O22: 0.09300777236 | Q22: 0.00865044572 | T22: 19 | U22: 0.19 | V22: 2.002222327 | W22: 1.829890652 | X22: 1.993605743 | Y22: 2.002222327
A23: 21 | B23: 3.122868259 | C23: 0.9716981132 | D23: 97.16981132 | H23: =MAX(H13:H21) -> 0.17 | I23: 1.829890652 | J23: 2.66716247 | K23: 3.263290989 | L23: 3.263290989 | N23: 0.1404227304 | O23: 0.1404227304 | Q23: 0.0197185432 | T23: 20 | U23: 0.2 | V23: 2.011826042 | W23: 1.829890652 | X23: 2.002222327 | Y23: 2.011826042
A24: 22 | T24: 21 | U24: 0.21 | V24: 2.02148997 | W24: 1.829890652 | X24: 2.010838911 | Y24: 2.02148997
A25: 23 | T25: 22 | U25: 0.22 | V25: 2.031215259 | W25: 1.829890652 | X25: 2.019455494 | Y25: 2.031215259
A26: 24 | T26: 23 | U26: 0.23 | V26: 2.041003091 | W26: 1.829890652 | X26: 2.028072078 | Y26: 2.041003091
A27: 25 | T27: 24 | U27: 0.24 | V27: 2.05085469 | W27: 1.829890652 | X27: 2.036688662 | Y27: 2.05085469
A28: 26 | T28: 25 | U28: 0.25 | V28: 2.060771318 | W28: 1.829890652 | X28: 2.045305246 | Y28: 2.060771318
A29: 27 | T29: 26 | U29: 0.26 | V29: 2.07075428 | W29: 1.829890652 | X29: 2.053921829 | Y29: 2.07075428
A30: 28 | T30: 27 | U30: 0.27 | V30: 2.080804925 | W30: 1.829890652 | X30: 2.062538413 | Y30: 2.080804925
A31: 29 | T31: 28 | U31: 0.28 | V31: 2.09092465 | W31: 1.829890652 | X31: 2.071154997 | Y31: 2.09092465
A32: 30 | T32: 29 | U32: 0.29 | V32: 2.101114898 | W32: 1.829890652 | X32: 2.079771581 | Y32: 2.101114898
A33: 31 | T33: 30 | U33: 0.3 | V33: 2.111377164 | W33: 1.829890652 | X33: 2.088388164 | Y33: 2.111377164
A34: 32 | T34: 31 | U34: 0.31 | V34: 2.121712998 | W34: 1.829890652 | X34: 2.097004748 | Y34: 2.121712998
A35: 33 | T35: 32 | U35: 0.32 | V35: 2.132124005 | W35: 1.829890652 | X35: 2.105621332 | Y35: 2.132124005
A36: 34 | T36: 33 | U36: 0.33 | V36: 2.142611848 | W36: 1.829890652 | X36: 2.114237916 | Y36: 2.142611848
A37: 35 | T37: 34 | U37: 0.34 | V37: 2.153178256 | W37: 1.829890652 | X37: 2.122854499 | Y37: 2.153178256
A38: 36 | T38: 35 | U38: 0.35 | V38: 2.16382502 | W38: 1.829890652 | X38: 2.131471083 | Y38: 2.16382502
A39: 37 | T39: 36 | U39: 0.36 | V39: 2.174554002 | W39: 1.829890652 | X39: 2.140087667 | Y39: 2.174554002
A40: 38 | T40: 37 | U40: 0.37 | V40: 2.185367137 | W40: 1.829890652 | X40: 2.148704251 | Y40: 2.185367137
A41: 39 | T41: 38 | U41: 0.38 | V41: 2.196266436 | W41: 1.829890652 | X41: 2.157320834 | Y41: 2.196266436
A42: 40 | T42: 39 | U42: 0.39 | V42: 2.207253993 | W42: 1.829890652 | X42: 2.165937418 | Y42: 2.207253993
A43: 41 | T43: 40 | U43: 0.4 | V43: 2.218331987 | W43: 1.829890652 | X43: 2.174554002 | Y43: 2.218331987
A44: 42 | T44: 41 | U44: 0.41 | V44: 2.229502689 | W44: 1.829890652 | X44: 2.183170586 | Y44: 2.229502689
A45: 43 | T45: 42 | U45: 0.42 | V45: 2.240768466 | W45: 1.829890652 | X45: 2.19178717 | Y45: 2.240768466
A46: 44 | T46: 43 | U46: 0.43 | V46: 2.252131788 | W46: 1.829890652 | X46: 2.200403753 | Y46: 2.252131788
A47: 45 | T47: 44 | U47: 0.44 | V47: 2.263595233 | W47: 1.829890652 | X47: 2.209020337 | Y47: 2.263595233
A48: 46 | T48: 45 | U48: 0.45 | V48: 2.275161495 | W48: 1.829890652 | X48: 2.217636921 | Y48: 2.275161495
A49: 47 | T49: 46 | U49: 0.46 | V49: 2.286833391 | W49: 1.829890652 | X49: 2.226253505 | Y49: 2.286833391
A50: 48 | T50: 47 | U50: 0.47 | V50: 2.298613871 | W50: 1.829890652 | X50: 2.234870088 | Y50: 2.298613871
A51: 49 | T51: 48 | U51: 0.48 | V51: 2.310506021 | W51: 1.829890652 | X51: 2.243486672 | Y51: 2.310506021
A52: 50 | T52: 49 | U52: 0.49 | V52: 2.322513079 | W52: 1.829890652 | X52: 2.252103256 | Y52: 2.322513079
A53: 51 | T53: 50 | U53: 0.5 | V53: 2.334638442 | W53: 1.829890652 | X53: 2.26071984 | Y53: 2.334638442
A54: 52 | T54: 51 | U54: 0.51 | V54: 2.346885677 | W54: 1.829890652 | X54: 2.269336423 | Y54: 2.346885677
A55: 53 | T55: 52 | U55: 0.52 | V55: 2.359258535 | W55: 1.829890652 | X55: 2.277953007 | Y55: 2.359258535
A56: 54 | T56: 53 | U56: 0.53 | V56: 2.371760962 | W56: 1.829890652 | X56: 2.286569591 | Y56: 2.371760962
A57: 55 | T57: 54 | U57: 0.54 | V57: 2.384397116 | W57: 1.829890652 | X57: 2.295186175 | Y57: 2.384397116
A58: 56 | T58: 55 | U58: 0.55 | V58: 2.397171382 | W58: 1.829890652 | X58: 2.303802758 | Y58: 2.397171382
A59: 57 | T59: 56 | U59: 0.56 | V59: 2.410088391 | W59: 1.829890652 | X59: 2.312419342 | Y59: 2.410088391
A60: 58 | T60: 57 | U60: 0.57 | V60: 2.423153038 | W60: 1.829890652 | X60: 2.321035926 | Y60: 2.423153038
A61: 59 | T61: 58 | U61: 0.58 | V61: 2.436370502 | W61: 1.829890652 | X61: 2.32965251 | Y61: 2.436370502
A62: 60 | T62: 59 | U62: 0.59 | V62: 2.449746277 | W62: 1.829890652 | X62: 2.338269093 | Y62: 2.449746277
A63: 61 | T63: 60 | U63: 0.6 | V63: 2.46328619 | W63: 1.829890652 | X63: 2.346885677 | Y63: 2.46328619
A64: 62 | T64: 61 | U64: 0.61 | V64: 2.476996437 | W64: 1.829890652 | X64: 2.355502261 | Y64: 2.476996437
A65: 63 | T65: 62 | U65: 0.62 | V65: 2.490883612 | W65: 1.829890652 | X65: 2.364118845 | Y65: 2.490883612
A66: 64 | T66: 63 | U66: =T66/100 -> 0.63 | V66: 2.504954747 | W66: 1.829890652 | X66: 2.372735428 | Y66: 2.504954747
A67: 65 | D67: =IF(ISNUMBER(C67)=TRUE,C67*100,"") ->  | T67: 64 | U67: 0.64 | V67: =IF((F$8*(F$4-F$3))>=U67,W67,IF((1-((F$8)*(F$6-F$5)))>=U67,X67,Y67)) -> 2.519217352 | W67: 1.829890652 | X67: 2.381352012 | Y67: 2.519217352
A68: 66 | C68: =IF(ISBLANK(B68)=FALSE,(((RANK(B68,B$3:B$207,1)+((COUNT(B$3:B$207)+1-RANK(B68,B$3:B$207,1)-RANK(B68,B$3:B$207,0))/2))-0.4)/(C$1+0.2)),"") ->  | T68: 65 | U68: 0.65 | V68: 2.533679464 | W68: =IF(ISNUMBER(U68)=TRUE,(F$3+SQRT((2*(F$4-F$3))/F$7)*SQRT(U68)),"") -> 1.829890652 | X68: =IF(ISNUMBER(U68)=TRUE,(((F$3+F$4)/2)+(U68/F$7)),"") -> 2.389968596 | Y68: =IF(ISNUMBER(U68)=TRUE,(F$6-SQRT((2*(F$6-F$5))/F$7)*SQRT(1-U68)),"") -> 2.533679464
A69: 67 | T69: 66 | U69: 0.66 | V69: 2.548349696 | W69: 1.829890652 | X69: 2.39858518 | Y69: 2.548349696
A70: 68 | T70: 67 | U70: 0.67 | V70: 2.563237299 | W70: 1.829890652 | X70: 2.407201763 | Y70: 2.563237299
A71: 69 | T71: 68 | U71: 0.68 | V71: 2.578352234 | W71: 1.829890652 | X71: 2.415818347 | Y71: 2.578352234
A72: 70 | T72: 69 | U72: 0.69 | V72: 2.593705244 | W72: 1.829890652 | X72: 2.424434931 | Y72: 2.593705244
A73: 71 | T73: 70 | U73: 0.7 | V73: 2.609307945 | W73: 1.829890652 | X73: 2.433051515 | Y73: 2.609307945
A74: 72 | T74: 71 | U74: 0.71 | V74: 2.625172931 | W74: 1.829890652 | X74: 2.441668099 | Y74: 2.625172931
A75: 73 | T75: 72 | U75: 0.72 | V75: 2.641313892 | W75: 1.829890652 | X75: 2.450284682 | Y75: 2.641313892
A76: 74 | I76: =IF(ISNUMBER(C76)=TRUE,(F$3+SQRT((2*(F$4-F$3))/F$7)*SQRT(C76)),"") ->  | J76: =IF(ISNUMBER(C76)=TRUE,(((F$3+F$4)/2)+(C76/F$7)),"") ->  | K76: =IF(ISNUMBER(C76)=TRUE,(F$6-SQRT((2*(F$6-F$5))/F$7)*SQRT(1-C76)),"") ->  | L76: =IF((F$8*(F$4-F$3))>=C76,I76,IF((1-((F$8)*(F$6-F$5)))>=C76,J76,K76)) ->  | N76: =IF(ISNUMBER(B76)=TRUE,L76-B76,"") ->  | O76: =IF(ISNUMBER(B76)=TRUE,ABS(N76),"") ->  | T76: 73 | U76: 0.73 | V76: 2.657745752 | W76: 1.829890652 | X76: 2.458901266 | Y76: 2.657745752
A77: 75 | T77: 74 | U77: 0.74 | V77: 2.674484829 | W77: 1.829890652 | X77: 2.46751785 | Y77: 2.674484829
A78: 76 | T78: 75 | U78: 0.75 | V78: 2.691549028 | W78: 1.829890652 | X78: 2.476134434 | Y78: 2.691549028
A79: 77 | T79: 76 | U79: 0.76 | V79: 2.708958062 | W79: 1.829890652 | X79: 2.484751017 | Y79: 2.708958062
A80: 78 | T80: 77 | U80: 0.77 | V80: 2.726733723 | W80: 1.829890652 | X80: 2.493367601 | Y80: 2.726733723
A81: 79 | T81: 78 | U81: 0.78 | V81: 2.744900198 | W81: 1.829890652 | X81: 2.501984185 | Y81: 2.744900198
A82: 80 | T82: 79 | U82: 0.79 | V82: 2.763484457 | W82: 1.829890652 | X82: 2.510600769 | Y82: 2.763484457
A83: 81 | T83: 80 | U83: 0.8 | V83: 2.782516723 | W83: 1.829890652 | X83: 2.519217352 | Y83: 2.782516723
A84: 82 | T84: 81 | U84: 0.81 | V84: 2.802031047 | W84: 1.829890652 | X84: 2.527833936 | Y84: 2.802031047
A85: 83 | T85: 82 | U85: 0.82 | V85: 2.822066027 | W85: 1.829890652 | X85: 2.53645052 | Y85: 2.822066027
A86: 84 | T86: 83 | U86: 0.83 | V86: 2.842665704 | W86: 1.829890652 | X86: 2.545067104 | Y86: 2.842665704
A87: 85 | T87: 84 | U87: 0.84 | V87: 2.863880703 | W87: 1.829890652 | X87: 2.553683687 | Y87: 2.863880703
A88: 86 | T88: 85 | U88: 0.85 | V88: 2.885769695 | W88: 1.829890652 | X88: 2.562300271 | Y88: 2.885769695
A89: 87 | T89: 86 | U89: 0.86 | V89: 2.908401318 | W89: 1.829890652 | X89: 2.570916855 | Y89: 2.908401318
A90: 88 | T90: 87 | U90: 0.87 | V90: 2.931856712 | W90: 1.829890652 | X90: 2.579533439 | Y90: 2.931856712
A91: 89 | T91: 88 | U91: 0.88 | V91: 2.956232969 | W91: 1.829890652 | X91: 2.588150022 | Y91: 2.956232969
A92: 90 | T92: 89 | U92: 0.89 | V92: 2.981647897 | W92: 1.829890652 | X92: 2.596766606 | Y92: 2.981647897
A93: 91 | T93: 90 | U93: 0.9 | V93: 3.008246797 | W93: 1.829890652 | X93: 2.60538319 | Y93: 3.008246797
A94: 92 | T94: 91 | U94: 0.91 | V94: 3.036212378 | W94: 1.829890652 | X94: 2.613999774 | Y94: 3.036212378
A95: 93 | T95: 92 | U95: 0.92 | V95: 3.065779819 | W95: 1.829890652 | X95: 2.622616357 | Y95: 3.065779819
A96: 94 | T96: 93 | U96: 0.93 | V96: 3.097260648 | W96: 1.829890652 | X96: 2.631232941 | Y96: 3.097260648
A97: 95 | T97: 94 | U97: 0.94 | V97: 3.131082733 | W97: 1.829890652 | X97: 2.639849525 | Y97: 3.131082733
A98: 96 | T98: 95 | U98: 0.95 | V98: 3.167862063 | W98: 1.829890652 | X98: 2.648466109 | Y98: 3.167862063
A99: 97 | T99: 96 | U99: 0.96 | V99: 3.208544053 | W99: 1.829890652 | X99: 2.657082692 | Y99: 3.208544053
A100: 98 | T100: 97 | U100: 0.97 | V100: 3.254720186 | W100: 1.829890652 | X100: 2.665699276 | Y100: 3.254720186
A101: 99 | T101: 98 | U101: 0.98 | V101: 3.309493611 | W101: 1.829890652 | X101: 2.67431586 | Y101: 3.309493611
A102: 100 | T102: 99 | U102: 0.99 | V102: 3.380875728 | W102: 1.829890652 | X102: 2.682932444 | Y102: 3.380875728
A103: 101 | T103: 99.5 | U103: 0.995 | V103: 3.431350507 | W103: 1.829890652 | X103: 2.687240736 | Y103: 3.431350507
A104: 102 | T104: 99.9 | U104: =T104/100 -> 0.999 | V104: 3.498711343 | W104: 1.829890652 | X104: 2.690687369 | Y104: 3.498711343
A105: 103
A106: 104
A107: 105
A108: 106
A109: 107
A110: 108
A111: 109
A112: 110
A113: 111
A114: 112
A115: 113
A116: 114
A117: 115
A118: 116
A119: 117
A120: 118
A121: 119
A122: 120
A123: 121
A124: 122
A125: 123
A126: 124
A127: 125
A128: 126
A129: 127
A130: 128
A131: 129 | D131: =IF(ISNUMBER(C131)=TRUE,C131*100,"") -> 
A132: 130 | C132: =IF(ISBLANK(B132)=FALSE,(((RANK(B132,B$3:B$207,1)+((COUNT(B$3:B$207)+1-RANK(B132,B$3:B$207,1)-RANK(B132,B$3:B$207,0))/2))-0.4)/(C$1+0.2)),"") -> 
A133: 131
A134: 132
A135: 133
A136: 134
A137: 135
A138: 136
A139: 137
A140: 138 | I140: =IF(ISNUMBER(C140)=TRUE,(F$3+SQRT((2*(F$4-F$3))/F$7)*SQRT(C140)),"") ->  | J140: =IF(ISNUMBER(C140)=TRUE,(((F$3+F$4)/2)+(C140/F$7)),"") ->  | K140: =IF(ISNUMBER(C140)=TRUE,(F$6-SQRT((2*(F$6-F$5))/F$7)*SQRT(1-C140)),"") ->  | L140: =IF((F$8*(F$4-F$3))>=C140,I140,IF((1-((F$8)*(F$6-F$5)))>=C140,J140,K140)) ->  | N140: =IF(ISNUMBER(B140)=TRUE,L140-B140,"") ->  | O140: =IF(ISNUMBER(B140)=TRUE,ABS(N140),"") -> 
A141: 139
A142: 140
A143: 141
A144: 142
A145: 143
A146: 144
A147: 145
A148: 146
A149: 147
A150: 148
A151: 149
A152: 150
A153: 151
A154: 152
A155: 153
A156: 154
A157: 155
A158: 156
A159: 157
A160: 158
A161: 159
A162: 160
A163: 161
A164: 162
A165: 163
A166: 164
A167: 165
A168: 166
A169: 167
A170: 168
A171: 169
A172: 170
A173: 171
A174: 172
A175: 173
A176: 174
A177: 175
A178: 176
A179: 177
A180: 178
A181: 179
A182: 180
A183: 181
A184: 182
A185: 183
A186: 184
A187: 185
A188: 186
A189: 187
A190: 188
A191: 189
A192: 190
A193: 191
A194: 192
A195: 193 | D195: =IF(ISNUMBER(C195)=TRUE,C195*100,"") -> 
A196: 194 | C196: =IF(ISBLANK(B196)=FALSE,(((RANK(B196,B$3:B$207,1)+((COUNT(B$3:B$207)+1-RANK(B196,B$3:B$207,1)-RANK(B196,B$3:B$207,0))/2))-0.4)/(C$1+0.2)),"") -> 
A197: 195
A198: 196
A199: 197
A200: 198
... 2 more rows
